bitfinex/quotes_BTCUSD_20220201
["timestamp","ask_amount","ask_price","bid_price","bid_amount"]
[1643745463873,2.53177015,38407.0,38406.0,0.02989198]
[1643745465115,1.15677015,38407.0,38406.0,0.02989198]
[1643745465617,1.35395202,38407.0,38406.0,0.02989198]
[1643745465820,0.502127,38407.0,38406.0,0.02346227]
[1643745466618,1.002127,38407.0,38406.0,0.02346227]
[1643745468569,1.302127,38407.0,38406.0,0.02346227]
[1643745469568,1.002127,38407.0,38406.0,0.02346227]
[1643745469768,0.502127,38407.0,38406.0,0.02346227]
[1643745470370,0.402127,38407.0,38406.0,0.02346227]
[1643745470569,0.902127,38407.0,38406.0,0.02346227]
[1643745471370,0.39922468,38407.0,38406.0,0.02346227]
[1643745473130,0.34712468,38407.0,38406.0,0.02346227]
[1643745473330,0.00126263,38408.0,38406.0,0.02346227]
[1643745474326,0.16394321,38412.0,38406.0,0.02346227]
[1643745474528,0.0012627,38409.0,38406.0,0.02346227]
[1643745474728,0.350015,38408.0,38406.0,0.02346227]
[1643745475331,0.46816162,38408.0,38406.0,0.02346227]
[1643745475772,0.350015,38408.0,38406.0,0.02346227]
[1643745476671,0.350015,38408.0,38406.0,0.03346227]
[1643745476870,0.3512777,38409.0,38406.0,0.03346227]
[1643745477872,0.350015,38409.0,38406.0,0.03346227]
[1643745478073,0.00126268,38409.0,38406.0,0.03346227]
[1643745478272,0.350015,38408.0,38406.0,0.03346227]
[1643745479827,0.415141,38408.0,38406.0,0.03346227]
[1643745480227,1.0,38407.0,38406.0,0.03346227]
[1643745480427,2.725015,38407.0,38406.0,0.03346227]
[1643745480627,2.777115,38407.0,38406.0,0.03346227]
[1643745481026,1.402115,38407.0,38406.0,0.03346227]
[1643745481231,1.402115,38407.0,38401.0,0.268]
[1643745481232,0.4,38406.0,38401.0,0.25146227]
[1643745481426,0.4,38406.0,38399.0,0.12236948]
[1643745481631,0.4,38406.0,38399.0,0.17236948]
[1643745481828,0.00126269,38408.0,38402.0,0.08713088]
[1643745482028,0.00126269,38408.0,38403.0,0.065115]
[1643745482426,0.00126269,38408.0,38402.0,0.08713088]
[1643745482628,0.09777169,38410.0,38402.0,0.08713088]
[1643745482829,0.00126271,38407.0,38401.0,0.010416]
[1643745483028,0.00126271,38407.0,38400.0,0.16255361]
[1643745483277,0.00126271,38407.0,38402.0,0.130215]
[1643745483480,0.00126271,38407.0,38403.0,0.25599319]
[1643745483677,0.00126271,38407.0,38403.0,0.20599319]
[1643745483879,0.1,38414.0,38402.0,0.20191917]
[1643745484076,0.1,38414.0,38409.0,0.37266104]
[1643745484276,0.1,38414.0,38409.0,0.32390942]
[1643745484476,0.350015,38413.0,38409.0,0.32390942]
[1643745484676,0.1,38414.0,38409.0,0.32390942]
[1643745484877,0.33131498,38416.0,38409.0,0.32390942]
[1643745484878,0.350015,38413.0,38409.0,0.32390942]
[1643745485076,0.1,38415.0,38409.0,0.32390942]
[1643745485279,0.00126263,38413.0,38409.0,0.32390942]
[1643745485477,0.00126263,38413.0,38409.0,0.4154358]
[1643745485877,0.00126263,38413.0,38409.0,0.25880442]
[1643745486383,0.00126264,38413.0,38409.0,0.25880442]
[1643745487418,0.39797001,38418.0,38409.0,0.25880442]
[1643745487618,0.00126264,38413.0,38409.0,0.25880442]
[1643745488119,0.00126264,38413.0,38409.0,0.32391042]
[1643745488320,0.00126264,38413.0,38409.0,0.25880442]
[1643745488519,0.51532729,38412.0,38407.0,0.130203]
[1643745488719,0.16531229,38412.0,38407.0,0.130203]
[1643745489319,0.16531229,38412.0,38408.0,0.01900892]
[1643745489520,0.00126264,38413.0,38410.0,0.31470323]
[1643745489919,0.1,38417.0,38410.0,0.31470323]
[1643745490121,0.350015,38416.0,38410.0,0.24960023]
[1643745490320,0.1,38415.0,38410.0,0.24960023]
[1643745490523,0.350015,38414.0,38410.0,0.24960023]
[1643745490774,0.50372523,38414.0,38410.0,0.24960023]
[1643745490974,0.350015,38414.0,38410.0,0.24960023]
[1643745491175,0.00126109,38414.0,38410.0,0.24960023]
[1643745491378,0.350015,38413.0,38410.0,0.24960023]
[1643745491577,0.00126109,38414.0,38410.0,0.24960023]
[1643745492173,0.17468392,38415.0,38410.0,0.24960023]
[1643745492374,0.35132799,38414.0,38407.0,0.06510461]
[1643745492573,0.00131299,38414.0,38405.0,0.32123699]
[1643745493375,0.17468392,38415.0,38407.0,0.23345409]
[1643745493574,0.00131303,38411.0,38407.0,0.23345409]
[1643745494421,0.00131303,38411.0,38407.0,0.29856309]
[1643745494622,0.17468392,38415.0,38407.0,0.38257919]
[1643745494822,0.00131303,38411.0,38407.0,0.38257919]
[1643745495624,0.00131303,38411.0,38407.0,0.44768402]
[1643745495824,0.17468392,38415.0,38407.0,0.38257919]
[1643745496024,0.00124945,38411.0,38407.0,0.38257919]
[1643745496525,0.00124945,38411.0,38407.0,0.065109]
[1643745497124,0.17468392,38415.0,38407.0,0.065109]
[1643745497325,0.00124945,38411.0,38407.0,0.065109]
[1643745497524,0.00124945,38411.0,38408.0,0.2234953]
[1643745498170,0.17468392,38415.0,38408.0,0.2234953]
[1643745498367,0.140078,38409.0,38407.0,0.065109]
[1643745498568,0.140078,38409.0,38404.0,0.1238]
[1643745498768,0.140078,38409.0,38401.0,0.230225]
[1643745499168,0.140078,38409.0,38403.0,0.0198777]
[1643745499370,0.140078,38409.0,38403.0,0.30411062]
[1643745499567,0.00126379,38408.0,38403.0,0.28423292]
[1643745499968,0.00126379,38408.0,38403.0,0.34934892]
[1643745500669,0.140078,38409.0,38403.0,0.34934892]
[1643745500867,0.0012638,38407.0,38403.0,0.34934892]
[1643745501269,0.0012638,38407.0,38403.0,0.37036597]
[1643745501919,0.140078,38409.0,38403.0,0.37036597]
[1643745502116,0.00126379,38407.0,38403.0,0.34934892]
[1643745502717,0.00126379,38407.0,38403.0,0.065116]
[1643745503117,0.140078,38409.0,38403.0,0.065116]
[1643745503319,0.00126057,38407.0,38403.0,0.065116]
[1643745503718,0.00126057,38407.0,38402.0,0.14085009]
[1643745503919,0.00114616,38407.0,38403.0,0.27884339]
[1643745504120,0.00114616,38407.0,38404.0,0.350015]
[1643745504320,0.17581652,38418.0,38404.0,0.350015]
[1643745504523,0.17581652,38418.0,38403.0,0.65278169]
[1643745504720,0.21897995,38419.0,38403.0,0.65278169]
[1643745504721,0.24301483,38419.0,38403.0,0.65278169]
[1643745504921,0.1354432,38418.0,38412.0,0.09749845]
[1643745505127,0.350015,38417.0,38412.0,0.09749845]
[1643745505322,0.400015,38417.0,38412.0,0.09749845]
[1643745505523,0.59051102,38417.0,38412.0,0.09749845]
[1643745505775,0.400015,38417.0,38412.0,0.09749845]
[1643745505972,0.59312461,38417.0,38412.0,0.09749845]
[1643745506974,0.001365,38416.0,38412.0,0.09749845]
[1643745507875,0.19744227,38419.0,38408.0,0.01878791]
[1643745508074,0.1422771,38416.0,38408.0,0.01878791]
[1643745508475,0.1422771,38416.0,38409.0,0.065102]
[1643745508676,0.00136501,38416.0,38409.0,0.065102]
[1643745508877,0.00136501,38416.0,38411.0,0.12067578]
[1643745509077,0.32626535,38420.0,38411.0,0.12067578]
[1643745509277,0.00136503,38414.0,38411.0,0.12067578]
[1643745510318,0.19026281,38419.0,38411.0,0.12067578]
[1643745510517,0.00136503,38414.0,38411.0,0.12067578]
[1643745510717,0.00136503,38414.0,38412.0,0.2449579]
[1643745511119,0.00136503,38414.0,38412.0,0.21503299]
[1643745511523,0.19026281,38419.0,38412.0,0.21503299]
[1643745511719,0.00136503,38415.0,38412.0,0.21503299]
[1643745512721,0.1919457,38419.0,38412.0,0.21503299]
[1643745512922,0.00136502,38415.0,38412.0,0.21503299]
[1643745513867,0.1919457,38419.0,38412.0,0.21503299]
[1643745514067,0.00136502,38415.0,38412.0,0.21503299]
[1643745514469,0.00136502,38415.0,38408.0,0.1169]
[1643745515072,0.20643054,38417.0,38408.0,0.1169]
[1643745515073,0.0521,38416.0,38408.0,0.1169]
[1643745515268,0.0521,38416.0,38408.0,0.13741292]
[1643745515471,0.10692808,38414.0,38408.0,0.13741292]
[1643745515669,0.18615291,38411.0,38408.0,0.1169]
[1643745515870,0.18615291,38411.0,38405.0,0.22601868]
[1643745518519,0.18615291,38411.0,38403.0,0.5952]
[1643745518520,0.20643054,38410.0,38403.0,0.5952]
[1643745518721,0.0521,38409.0,38403.0,0.5952]
[1643745518922,0.0521,38409.0,38401.0,0.268]
[1643745519220,0.350015,38408.0,38401.0,0.47443054]
[1643745519421,0.15123631,38410.0,38406.0,0.29195961]
[1643745519422,0.0521,38407.0,38406.0,0.29195961]
[1643745520022,0.5021,38407.0,38404.0,0.09610346]
[1643745520873,0.0521,38407.0,38405.0,0.065114]
[1643745521072,0.0521,38407.0,38405.0,0.3297621]
[1643745521276,0.05341428,38407.0,38405.0,0.3297621]
[1643745521473,0.05341428,38407.0,38403.0,0.010416]
[1643745521674,0.05341428,38407.0,38401.0,0.268]
[1643745522074,0.350015,38406.0,38401.0,0.268]
[1643745522277,0.0521,38405.0,38401.0,0.268]
[1643745522478,0.350015,38404.0,38401.0,0.268]
[1643745522676,0.0521,38403.0,38401.0,0.268]
[1643745530372,0.0521,38403.0,38399.0,0.065127]
[1643745530972,0.0521,38403.0,38401.0,0.130234]
[1643745532015,0.00125903,38407.0,38401.0,0.130234]
[1643745532218,0.00125903,38407.0,38402.0,0.59466219]
[1643745532416,0.00125903,38407.0,38404.0,0.0651]
[1643745532618,0.00125903,38407.0,38405.0,0.80371301]
[1643745532816,0.00125903,38407.0,38405.0,0.72340134]
[1643745533015,0.09767084,38418.0,38406.0,0.1127691]
[1643745533217,0.13458353,38419.0,38407.0,0.19888912]
[1643745533218,0.00125908,38408.0,38407.0,0.19888912]
[1643745533419,0.00125908,38408.0,38406.0,0.1127691]
[1643745533716,0.00125908,38408.0,38407.0,0.780217]
[1643745534318,0.48859767,38419.0,38407.0,0.780217]
[1643745534520,0.00125982,38409.0,38407.0,0.430202]
[1643745535118,0.00125982,38409.0,38407.0,0.130202]
[1643745535520,0.18818197,38416.0,38407.0,0.130202]
[1643745535776,0.00125982,38410.0,38407.0,0.130202]
[1643745536675,0.19178208,38414.0,38407.0,0.130202]
[1643745536874,0.1869328,38415.0,38411.0,0.27969903]
[1643745537074,0.00503849,38416.0,38411.0,0.27969903]
[1643745537274,0.00503849,38416.0,38411.0,0.065104]
[1643745537775,0.1987367,38417.0,38411.0,0.065104]
[1643745537978,0.00125958,38415.0,38407.0,0.065111]
[1643745538176,0.00125958,38415.0,38399.0,0.49142191]
[1643745538177,0.350015,38414.0,38405.0,0.28599922]
[1643745538377,0.25256266,38415.0,38405.0,0.28599922]
[1643745538378,0.20809294,38413.0,38405.0,0.28599922]
[1643745538580,0.00125958,38415.0,38405.0,0.28599922]
[1643745538778,0.00125958,38415.0,38404.0,0.1133]
[1643745538779,0.065112,38414.0,38404.0,0.1133]
[1643745538979,0.1851995,38409.0,38404.0,0.1133]
[1643745539179,0.1851995,38409.0,38402.0,0.065121]
[1643745539180,0.604287,38408.0,38402.0,0.065121]
[1643745539617,0.604287,38408.0,38398.0,0.1259235]
[1643745539816,0.254272,38408.0,38400.0,0.24099871]
[1643745540025,0.254272,38408.0,38398.0,0.1259235]
[1643745540026,0.09873494,38403.0,38398.0,0.2561705]
[1643745540220,0.09873494,38403.0,38397.0,0.002]
[1643745540221,0.35579683,38402.0,38397.0,0.002]
[1643745540421,0.35579683,38402.0,38399.0,0.065126]
[1643745541019,0.15044183,38402.0,38399.0,0.075543]
[1643745541222,0.15044183,38402.0,38399.0,0.065126]
[1643745541619,0.0521,38402.0,38399.0,0.065126]
[1643745542022,0.18651387,38401.0,38399.0,0.065126]
[1643745542221,0.18749195,38401.0,38398.0,0.00092358]
[1643745542722,0.18749195,38401.0,38397.0,0.132251]
[1643745542922,0.18749195,38401.0,38398.0,0.0009236]
[1643745543971,0.18749195,38401.0,38397.0,0.132251]
[1643745544172,0.18749195,38401.0,38398.0,0.0004618]
[1643745545175,0.18749195,38401.0,38397.0,0.132251]
[1643745545378,0.25262595,38401.0,38398.0,0.00092358]
[1643745545775,0.0521,38402.0,38398.0,0.06605258]
[1643745546377,0.0521,38402.0,38398.0,0.065129]
[1643745546574,0.0521,38402.0,38398.0,0.00092357]
[1643745546575,0.20643054,38401.0,38398.0,0.00092357]
[1643745546782,0.20643054,38401.0,38396.0,0.4406]
[1643745546783,0.350015,38400.0,38396.0,0.4406]
[1643745547025,2.20723054,38399.0,38396.0,0.43852357]
[1643745547226,1.777115,38398.0,38396.0,0.43852357]
[1643745547425,2.04799599,38398.0,38395.0,0.0042]
[1643745547625,0.1,38397.0,38395.0,0.0042]
[1643745547826,1.352115,38396.0,38395.0,0.0042]
[1643745548026,1.51106536,38396.0,38395.0,0.0042]
[1643745548239,1.61106536,38396.0,38395.0,0.0042]
[1643745548727,0.66106536,38396.0,38395.0,0.0042]
[1643745548931,0.502115,38396.0,38395.0,0.0042]
[1643745549331,0.402115,38396.0,38395.0,0.0042]
[1643745549731,0.0521,38396.0,38395.0,0.0042]
[1643745550529,0.3521,38396.0,38395.0,0.0042]
[1643745550780,0.0521,38396.0,38395.0,0.0042]
[1643745551980,0.600569,38396.0,38395.0,0.0042]
[1643745552678,0.700569,38396.0,38395.0,0.0042]
[1643745552880,0.502115,38396.0,38395.0,0.0042]
[1643745553178,0.402115,38396.0,38395.0,0.0042]
[1643745553379,0.0521,38396.0,38395.0,0.0042]
[1643745553579,0.0521,38396.0,38395.0,0.09811288]
[1643745554183,0.2885008,38402.0,38395.0,0.16323988]
[1643745554425,0.00125694,38403.0,38395.0,0.3489046]
[1643745554624,0.00125694,38403.0,38395.0,0.16323988]
[1643745554625,0.1068674,38403.0,38395.0,0.16323988]
[1643745554823,0.1068674,38403.0,38396.0,0.000919]
[1643745555025,0.1081244,38403.0,38396.0,0.000919]
[1643745555223,0.001257,38403.0,38396.0,0.000919]
[1643745555424,0.001257,38403.0,38400.0,0.25906229]
[1643745555824,0.29122395,38408.0,38400.0,0.25906229]
[1643745555825,0.15,38408.0,38400.0,0.25906229]
[1643745556024,0.350015,38407.0,38400.0,0.25906229]
[1643745556224,0.1,38406.0,38400.0,0.25906229]
[1643745556425,0.415144,38405.0,38398.0,0.065126]
[1643745556830,0.415144,38405.0,38396.0,0.11486002]
[1643745556831,0.1,38404.0,38396.0,0.11486002]
[1643745557024,0.1,38404.0,38395.0,0.2857993]
[1643745557225,0.00124792,38402.0,38396.0,0.00092004]
[1643745557428,0.00124792,38402.0,38398.0,0.22099967]
[1643745557828,0.00124792,38402.0,38398.0,0.28612467]
[1643745558273,0.05,38408.0,38398.0,0.065125]
[1643745558470,0.00124792,38402.0,38398.0,0.065125]
[1643745558870,0.00124792,38402.0,38401.0,0.10941726]
[1643745559372,0.00124792,38402.0,38401.0,0.33855093]
[1643745559571,0.05,38409.0,38401.0,0.4879175]
[1643745559770,0.0012478,38403.0,38401.0,0.4879175]
[1643745560572,0.0012478,38403.0,38402.0,0.065121]
[1643745560774,0.22175705,38411.0,38408.0,0.09161595]
[1643745560775,0.1758288,38411.0,38408.0,0.09161595]
[1643745560971,0.53239438,38417.0,38408.0,0.09161595]
[1643745560972,0.350015,38410.0,38408.0,0.09161595]
[1643745561172,0.350015,38412.0,38402.0,0.32070629]
[1643745561374,0.21881377,38413.0,38402.0,0.1248]
[1643745561571,0.065117,38412.0,38402.0,0.1248]
[1643745562031,0.00124773,38409.0,38402.0,0.255029]
[1643745562226,0.00124773,38409.0,38403.0,0.12580185]
[1643745562428,0.00124773,38409.0,38403.0,0.19092085]
[1643745562927,0.350015,38408.0,38403.0,0.12580185]
[1643745563327,0.00124777,38408.0,38403.0,0.12580185]
[1643745563728,0.00124777,38408.0,38402.0,0.130229]
[1643745564229,0.1,38410.0,38402.0,0.130229]
[1643745564432,0.350015,38409.0,38401.0,0.010417]
[1643745564633,0.00124778,38407.0,38401.0,0.010417]
[1643745564828,0.00124778,38407.0,38402.0,0.11609733]
[1643745565231,0.00124778,38407.0,38398.0,0.1209]
[1643745565431,0.1,38408.0,38398.0,0.1209]
[1643745565683,0.00124781,38404.0,38398.0,0.40112243]
[1643745565875,0.00124781,38404.0,38398.0,0.28022243]
[1643745566075,0.00124781,38404.0,38401.0,0.02097813]
[1643745566275,0.00124781,38404.0,38398.0,0.39640819]
[1643745566476,0.06637881,38404.0,38398.0,0.39640819]
[1643745566677,1.440131,38404.0,38398.0,0.39640819]
[1643745566880,1.440131,38404.0,38398.0,0.11618576]
[1643745566881,0.15334782,38403.0,38398.0,0.11618576]
[1643745567181,0.350015,38402.0,38398.0,0.11618576]
[1643745567376,0.0521,38401.0,38398.0,0.11618576]
[1643745567579,0.0521,38400.0,38398.0,0.11618576]
[1643745567780,0.0521,38399.0,38398.0,0.36636406]
[1643745568778,0.0521,38399.0,38398.0,0.44568292]
[1643745569623,0.0521,38399.0,38397.0,0.065132]
[1643745569833,0.19983613,38398.0,38396.0,0.00091985]
[1643745570030,0.7021,38397.0,38396.0,0.00091985]
[1643745570233,1.03120905,38397.0,38395.0,0.0042]
[1643745570428,0.21726603,38396.0,38395.0,0.00511989]
[1643745570630,0.21726603,38396.0,38395.0,0.10631171]
[1643745570631,0.24022911,38396.0,38395.0,0.10631171]
[1643745570827,0.0521,38396.0,38395.0,0.10631171]
[1643745571427,0.0521,38396.0,38395.0,0.10539182]
[1643745571631,0.0521,38396.0,38395.0,0.0042]
[1643745572230,0.402115,38396.0,38395.0,0.0042]
[1643745572532,0.902115,38396.0,38395.0,0.00410371]
[1643745572728,1.002115,38396.0,38395.0,0.00410371]
[1643745573180,0.402115,38396.0,38395.0,0.00410371]
[1643745573870,0.502115,38396.0,38395.0,0.00410371]
[1643745574369,0.72004753,38396.0,38395.0,0.00410371]
[1643745574571,0.72004753,38396.0,38395.0,0.02284371]
[1643745575372,1.402115,38396.0,38395.0,0.02284371]
[1643745575570,0.5014211,38396.0,38395.0,0.02284371]
[1643745575971,1.8764211,38396.0,38395.0,0.02284371]
[1643745576370,0.13029548,38398.0,38395.0,0.02284371]
[1643745576574,0.195436,38405.0,38395.0,0.02284371]
[1643745576575,0.03906305,38408.0,38398.0,1.35]
[1643745576772,0.3967,38414.0,38400.0,1.35]
[1643745577043,0.00019308,38416.0,38401.0,0.25853054]
[1643745577231,0.02594,38426.0,38401.0,0.25853054]
[1643745577232,0.00019308,38426.0,38404.0,0.6508]
[1643745577433,0.00019308,38426.0,38421.0,0.10401145]
[1643745577631,0.350039,38425.0,38420.0,0.0521]
[1643745577835,0.15779676,38431.0,38421.0,0.065092]
[1643745577836,0.00516319,38423.0,38421.0,0.065092]
[1643745578530,0.00516319,38423.0,38422.0,0.28546087]
[1643745578730,0.15779676,38431.0,38422.0,0.28546087]
[1643745578731,0.14867708,38425.0,38422.0,0.28546087]
[1643745578931,0.0012909,38424.0,38421.0,0.065092]
[1643745579933,0.18870202,38428.0,38422.0,0.29652383]
[1643745580234,0.18870202,38428.0,38420.0,0.0521]
[1643745580235,0.00129089,38424.0,38420.0,0.0521]
[1643745581076,1.440095,38427.0,38420.0,0.0521]
[1643745581372,0.07611133,38424.0,38421.0,0.01874]
[1643745581571,0.350039,38423.0,38421.0,0.01874]
[1643745581772,0.07611133,38424.0,38421.0,0.01874]
[1643745581972,0.350039,38423.0,38421.0,0.01874]
[1643745582172,0.07611133,38424.0,38421.0,0.01874]
[1643745582373,0.07487664,38424.0,38421.0,0.01874]
[1643745582571,0.07611133,38424.0,38421.0,0.01874]
[1643745583471,1.56370202,38428.0,38421.0,0.01874]
[1643745583672,0.00123468,38424.0,38421.0,0.01874]
[1643745583871,0.00123468,38424.0,38420.0,0.01874]
[1643745584071,0.00123468,38424.0,38420.0,0.029152]
[1643745584519,0.00123468,38424.0,38420.0,0.01874]
[1643745584720,1.375,38427.0,38420.0,0.01874]
[1643745585021,0.08644495,38425.0,38420.0,0.01874]
[1643745586121,0.00124578,38424.0,38420.0,0.01874]
[1643745586323,0.08644495,38425.0,38420.0,0.01874]
[1643745586324,0.08269073,38425.0,38420.0,0.01874]
[1643745586527,0.350039,38424.0,38420.0,0.01874]
[1643745586722,0.400039,38424.0,38420.0,0.01874]
[1643745586923,1.775039,38424.0,38417.0,0.01874]
[1643745587122,0.11274267,38422.0,38417.0,0.01874]
[1643745587322,0.400039,38421.0,38417.0,0.01874]
[1643745587522,0.17045424,38419.0,38417.0,0.01874]
[1643745587722,0.350039,38418.0,38417.0,0.01874]
[1643745587923,0.950039,38418.0,38417.0,0.01874]
[1643745588978,2.325039,38418.0,38417.0,0.01874]
[1643745589178,2.4284848,38418.0,38417.0,0.01874]
[1643745589378,1.8284848,38418.0,38417.0,0.01874]
[1643745589779,0.4534848,38418.0,38417.0,0.01874]
[1643745589978,0.4534848,38418.0,38412.0,0.01874]
[1643745590182,0.17307186,38413.0,38412.0,0.01874]
[1643745591182,1.4784458,38418.0,38412.0,0.01874]
[1643745591381,1.4784458,38418.0,38413.0,0.06511]
[1643745591382,0.350039,38417.0,38413.0,0.06511]
[1643745591581,0.400039,38417.0,38413.0,0.06511]
[1643745592420,0.14767254,38416.0,38413.0,0.06511]
[1643745592618,0.350039,38415.0,38413.0,0.06511]
[1643745593118,0.350039,38415.0,38414.0,0.01874]
[1643745593920,0.14767254,38416.0,38414.0,0.01874]
[1643745594119,0.700039,38415.0,38414.0,0.01374]
[1643745594319,0.350039,38415.0,38414.0,0.01374]
[1643745595119,0.900039,38415.0,38414.0,0.01374]
[1643745595321,0.98865367,38415.0,38414.0,0.01374]
[1643745595522,1.03865367,38415.0,38414.0,0.01374]
[1643745595980,1.53865367,38415.0,38414.0,0.01374]
[1643745596179,2.91365367,38415.0,38410.0,0.01374]
[1643745596378,2.41365367,38415.0,38410.0,0.01374]
[1643745599079,0.10216412,38411.0,38410.0,0.01374]
[1643745599281,0.13861467,38415.0,38410.0,0.01374]
[1643745599520,0.13861467,38415.0,38410.0,0.143954]
[1643745600121,0.13861467,38415.0,38410.0,0.209067]
[1643745600621,0.07810357,38414.0,38410.0,0.209067]
[1643745601023,0.07810357,38414.0,38410.0,0.143954]
[1643745601226,0.07810357,38414.0,38410.0,0.01374]
[1643745602224,0.00318263,38412.0,38410.0,0.01374]
[1643745602626,0.12810357,38414.0,38410.0,0.01374]
[1643745603877,0.00318263,38412.0,38410.0,0.01374]
[1643745604076,0.12810357,38414.0,38410.0,0.01374]
[1643745604474,0.05,38414.0,38410.0,0.30982579]
[1643745604876,0.19767254,38416.0,38410.0,0.30982579]
[1643745605074,0.19767254,38416.0,38410.0,0.37493679]
[1643745605278,0.00318263,38413.0,38410.0,0.44004579]
[1643745607420,0.00318263,38413.0,38410.0,0.4175552]
[1643745607620,0.09227599,38416.0,38410.0,0.4125552]
[1643745607822,0.09227599,38416.0,38413.0,0.065105]
[1643745608020,0.17989938,38416.0,38414.0,0.065103]
[1643745608222,0.17989938,38416.0,38414.0,0.01374]
[1643745608223,0.350039,38415.0,38414.0,0.01374]
[1643745609027,0.55,38414.0,38411.0,0.043949]
[1643745609223,0.55,38414.0,38413.0,0.06571428]
[1643745609425,0.900039,38414.0,38413.0,0.13142856]
[1643745609729,0.900039,38414.0,38406.0,0.01852625]
[1643745609730,2.725,38412.0,38406.0,0.01852625]
[1643745610025,0.402139,38411.0,38406.0,0.01852625]
[1643745610224,1.375,38409.0,38406.0,0.01852625]
[1643745610424,1.21995257,38407.0,38406.0,0.01852625]
[1643745610694,1.21995257,38407.0,38399.0,0.4932]
[1643745610695,0.1586262,38406.0,38400.0,0.05]
[1643745610885,0.1586262,38406.0,38398.0,0.065134]
[1643745610886,0.350039,38405.0,38398.0,0.065134]
[1643745611486,0.065138,38404.0,38394.0,0.0022]
[1643745611692,0.09348698,38399.0,38394.0,0.0022]
[1643745611886,0.19635479,38398.0,38394.0,0.0022]
[1643745612286,0.09348698,38399.0,38394.0,0.02331876]
[1643745612488,0.28844418,38399.0,38394.0,0.02331876]
[1643745612788,0.182375,38408.0,38397.0,0.130244]
[1643745612789,0.0521,38408.0,38397.0,0.130244]
[1643745613087,0.3865,38415.0,38397.0,0.130244]
[1643745613088,0.4365,38415.0,38397.0,0.130244]
[1643745613289,0.2181182,38414.0,38397.0,0.130244]
[1643745613492,0.05,38415.0,38408.0,0.25786326]
[1643745613795,0.09763694,38413.0,38412.0,0.07836515]
[1643745614529,0.09763694,38413.0,38411.0,0.130205]
[1643745615132,0.00134411,38416.0,38411.0,0.130205]
[1643745615333,0.00134411,38416.0,38411.0,0.34230398]
[1643745615530,0.00134411,38416.0,38411.0,0.130205]
[1643745615531,0.00318263,38414.0,38411.0,0.130205]
[1643745615734,0.00318263,38414.0,38412.0,0.350039]
[1643745616132,0.00134411,38416.0,38412.0,0.350039]
[1643745616332,0.00134411,38416.0,38415.0,0.39971716]
[1643745616531,0.00134411,38416.0,38415.0,0.36116495]
[1643745616936,0.00452674,38416.0,38415.0,0.86116495]
[1643745617133,0.00318263,38416.0,38415.0,0.41116495]
[1643745617332,0.00318263,38416.0,38415.0,0.34607595]
[1643745617732,0.00318263,38416.0,38415.0,0.94607595]
[1643745618034,0.00318263,38416.0,38415.0,1.13964948]
[1643745618277,0.00318263,38416.0,38414.0,0.260376]
[1643745618477,0.17917981,38422.0,38414.0,0.260376]
[1643745618678,0.17917981,38422.0,38413.0,0.065093]
[1643745618679,0.350039,38421.0,38413.0,0.065093]
[1643745618876,0.17917981,38422.0,38413.0,0.065093]
[1643745619076,0.16633099,38419.0,38413.0,0.065093]
[1643745619277,0.21633099,38419.0,38413.0,0.065093]
[1643745619676,0.21633099,38419.0,38415.0,0.40419267]
[1643745620078,0.21633099,38419.0,38415.0,0.130194]
[1643745620278,0.00318263,38417.0,38415.0,0.130194]
[1643745620477,0.21633099,38419.0,38415.0,0.065097]
[1643745620678,0.21633099,38419.0,38415.0,0.130197]
[1643745621078,0.21767657,38419.0,38415.0,0.130197]
[1643745621281,0.08929909,38416.0,38415.0,0.130197]
[1643745621478,0.08929909,38416.0,38415.0,0.065097]
[1643745621680,0.09248172,38416.0,38415.0,0.065097]
[1643745621922,0.18675264,38416.0,38415.0,0.065097]
[1643745622324,0.18675264,38416.0,38413.0,0.065093]
[1643745622524,0.18357001,38416.0,38413.0,0.065093]
[1643745623124,0.08929909,38416.0,38413.0,0.065093]
[1643745623326,0.00318263,38414.0,38413.0,0.065093]
[1643745626583,0.00318263,38414.0,38412.0,0.010413]
[1643745626786,0.15263545,38416.0,38412.0,0.010413]
[1643745626987,0.00318263,38414.0,38412.0,0.010413]
[1643745627183,0.350039,38413.0,38412.0,0.010413]
[1643745628585,0.00318263,38413.0,38412.0,0.010413]
[1643745629189,0.00318263,38413.0,38412.0,0.85798899]
[1643745629430,0.00318263,38413.0,38412.0,0.30798899]
[1643745629630,0.00318263,38413.0,38412.0,0.010413]
[1643745630035,0.00286926,38413.0,38412.0,0.010413]
[1643745630233,0.00286926,38413.0,38408.0,0.15121488]
[1643745630430,0.0985277,38414.0,38408.0,0.25351633]
[1643745630730,0.10263545,38416.0,38408.0,0.25351633]
[1643745630731,0.10398104,38416.0,38412.0,0.2297432]
[1643745631531,0.10263545,38416.0,38412.0,0.2297432]
[1643745631731,0.00286926,38414.0,38412.0,0.2297432]
[1643745631933,0.10398107,38416.0,38412.0,0.2297432]
[1643745632332,0.00134562,38416.0,38412.0,0.2297432]
[1643745632731,0.09597214,38417.0,38412.0,0.2297432]
[1643745632931,0.00134562,38416.0,38412.0,0.2247432]
[1643745633376,0.00421488,38416.0,38412.0,0.2247432]
[1643745633578,0.00134562,38416.0,38412.0,0.2247432]
[1643745633978,0.16633099,38419.0,38412.0,0.2247432]
[1643745634182,0.00134562,38416.0,38412.0,0.2247432]
[1643745634880,0.00286926,38414.0,38412.0,0.2247432]
[1643745635083,0.07812832,38417.0,38412.0,0.2247432]
[1643745635279,0.0013456,38416.0,38412.0,0.2247432]
[1643745635480,0.0013456,38416.0,38411.0,0.01959277]
[1643745635681,0.0013456,38416.0,38411.0,0.08469677]
[1643745636281,0.07812832,38417.0,38411.0,0.14979877]
[1643745636282,0.00286926,38414.0,38411.0,0.14979877]
[1643745636938,0.00286926,38414.0,38411.0,0.08469677]
[1643745637135,0.00286926,38414.0,38411.0,0.065104]
[1643745637334,0.00134561,38416.0,38411.0,0.130204]
[1643745637534,0.07812832,38417.0,38411.0,0.130204]
[1643745637741,0.00134559,38416.0,38411.0,0.130204]
[1643745637937,0.00286926,38414.0,38411.0,0.130204]
[1643745638140,0.00134559,38416.0,38411.0,0.130204]
[1643745638338,0.00134559,38416.0,38413.0,0.065096]
[1643745638739,0.0521,38427.0,38413.0,0.065096]
[1643745638937,0.30234056,38430.0,38412.0,0.39007]
[1643745638938,0.00134561,38416.0,38414.0,0.26884148]
[1643745639138,0.00134561,38416.0,38415.0,1.79337829]
[1643745639338,0.00291487,38416.0,38415.0,1.89547829]
[1643745639739,0.00291487,38416.0,38415.0,2.25679494]